fUSD/lending_fUSD_20251118
["ID","MTS","AMOUNT","RATE_DAILY","PERIOD"]
[394327533,1763455843964,-500.0,0.00016973,2]
[394327534,1763455843972,-500.0,0.00016973,2]
[394327535,1763455843981,-500.0,0.00016973,2]
[394327536,1763455843991,-500.0,0.00016973,2]
[394327537,1763455844000,-500.0,0.00016973,2]
[394327538,1763455844009,-500.0,0.00016973,2]
[394327539,1763455844018,-500.0,0.00016973,2]
[394327540,1763455844027,-500.0,0.00016973,2]
[394327541,1763455844036,-500.0,0.00016986,2]
[394327542,1763455844045,-500.0,0.00016986,2]
[394327543,1763455844054,-500.0,0.00016986,2]
[394327544,1763455844063,-500.0,0.00016986,2]
[394327545,1763455844072,-278.14469767,0.00016986,2]
[394327546,1763455844081,-500.0,0.00016986,2]
[394327547,1763455844091,-500.0,0.00016986,2]
[394327548,1763455844100,-3888.0,0.00016986,2]
[394327549,1763455844109,-65796.36,0.00016986,2]
[394327550,1763455844118,-150.0,0.00016986,2]
[394327551,1763455844127,-274.08617447,0.00016986,2]
[394327552,1763455844136,-150.0,0.00016986,2]
[394327553,1763455844145,-150.0,0.00016986,2]
[394327554,1763455844154,-150.0,0.00016986,2]
[394327555,1763455844163,-150.0,0.00016986,2]
[394327557,1763455844172,-297.62569978,0.00016986,2]
[394327558,1763455844181,-203.36642932,0.00016986,2]
[394327559,1763455844190,-214.06827791,0.00016987,2]
[394327560,1763455844199,-196.91561202,0.0001699,2]
[394327561,1763455844208,-196.91561202,0.0001699,2]
[394327562,1763455844216,-196.91561202,0.0001699,2]
[394327563,1763455844234,-300.0,0.00016999,2]
[394327564,1763455844244,-300.0,0.00016999,2]
[394327565,1763455844254,-500.0,0.00016999,2]
[394327566,1763455844264,-500.0,0.00016999,2]
[394327567,1763455844273,-500.0,0.00016999,2]
[394327568,1763455844282,-500.0,0.00016999,2]
[394327569,1763455844291,-634.59256275,0.00016999,2]
[394327570,1763455844300,-151.32338748,0.00016999,2]
[394327571,1763455844309,-491.06138462,0.00016999,2]
[394327572,1763455844318,-537.3881987,0.00016999,2]
[394327573,1763455844327,-500.0,0.00016999,2]
[394327574,1763455844336,-500.0,0.00016999,2]
[394327575,1763455844345,-500.0,0.00016999,2]
[394327576,1763455844354,-500.0,0.00016999,2]
[394327577,1763455844363,-500.0,0.00016999,2]
[394327578,1763455844373,-500.0,0.00016999,2]
[394327579,1763455844382,-500.0,0.00016999,2]
[394327580,1763455844391,-500.0,0.00016999,2]
[394327581,1763455844400,-152.13338801,0.00016999,2]
[394327582,1763455844410,-500.0,0.00016999,2]
[394327583,1763455844419,-500.0,0.00016999,2]
[394327584,1763455844432,-500.0,0.00016999,2]
[394327585,1763455844441,-500.0,0.00016999,2]
[394327586,1763455844451,-500.0,0.00016999,2]
[394327587,1763455844459,-500.0,0.00016999,2]
[394327588,1763455844469,-500.0,0.00016999,2]
[394327589,1763455844478,-381.2298369,0.00016999,2]
[394327590,1763455844488,-359.04770549,0.00016999,2]
[394327591,1763455844498,-300.0,0.00016999,2]
[394327592,1763455844508,-660193.36554098,0.00017,2]
[394327593,1763455844522,-1008300.30671439,0.00017,2]
[394327594,1763455844647,-7683.24542656,0.00017,2]
[394327595,1763455844662,-17789.74353436,0.00017,2]
[394327596,1763455844673,-14823.90919324,0.00017,2]
[394327597,1763455844684,-66657.64910273,0.00017,2]
[394327598,1763455844695,-25186.3396482,0.00017,2]
[394327600,1763455846542,-553.28768641,0.00017,2]
[394327607,1763455859684,1000.0,0.00016558,2]
[394327608,1763455865652,3738.78859964,0.00016558,2]
[394327609,1763455865676,340.47520036,0.00016558,2]
[394327610,1763455868090,151.0,0.00041686,30]
[394327611,1763455868691,151.0,0.00041686,30]
[394327612,1763455869367,151.0,0.00041686,30]
[394327613,1763455869974,151.0,0.00041686,30]
[394327614,1763455872166,9659.53479964,0.00016558,2]
[394327615,1763455872188,7729.24740036,0.00016558,2]
[394327617,1763455886662,397.8011829,0.00041686,120]
[394327618,1763455909095,-155.51706542,0.00016615,2]
[394327619,1763455922884,5105.7868,0.00016558,2]
[394327620,1763455923159,150.0,0.00016316,2]
[394327621,1763455925273,151.0,0.00041686,120]
[394327622,1763455925960,151.0,0.00041686,120]
[394327623,1763455926594,151.0,0.00041686,120]
[394327624,1763455927477,151.0,0.00041686,120]
[394327625,1763455928107,151.0,0.00041686,120]
[394327626,1763455928751,151.0,0.00041686,120]
[394327627,1763455929407,151.0,0.00041686,120]
[394327628,1763455935167,200.0,0.00041686,120]
[394327629,1763455940603,200.0,0.00041686,120]
[394327630,1763455943879,200.0,0.00041686,120]
[394327631,1763455953571,500.0,0.00016524,2]
[394327632,1763455955991,400.0,0.000165,6]
[394327633,1763455958092,800.0,0.000166,6]
[394327634,1763455959656,3933.18906916,0.00016558,2]
[394327635,1763455959679,10000.01,0.00016558,2]
[394327636,1763455959701,10000.01,0.00016558,2]
[394327637,1763455959723,9399.38663084,0.00016558,2]
[394327638,1763455960225,1200.0,0.000167,6]
[394327639,1763455962325,1600.0,0.000168,6]
[394327640,1763455964416,2000.0,0.000169,6]
[394327641,1763455982326,600.62336916,0.00016531,2]
[394327642,1763455982353,1251.79663084,0.00016531,2]
[394327643,1763455990237,6888.0,0.00041686,120]
[394327644,1763456109675,150.0,0.00016108,2]
[394327645,1763456192472,550.16,0.00016003,2]
[394327646,1763456277310,171.86246686,0.00016555,2]
[394327647,1763456295386,5888.0,0.00016402,2]
[394327648,1763456329386,200.0,0.00015994,2]
[394327650,1763456428361,1464.56,0.00015729,2]
[394327651,1763456438188,1500.0,0.00015878,2]
[394327652,1763456440907,168.1726163,0.00016558,2]
[394327653,1763456440976,168.1726163,0.00016558,2]
[394327654,1763456443193,151.0,0.00016558,2]
[394327655,1763456443595,151.0,0.00016558,2]
[394327656,1763456443631,303.71,0.00016465,2]
[394327657,1763456444595,5.3947674,0.00016558,2]
[394327658,1763456444616,264.03677337,0.00016558,2]
[394327659,1763456527938,150.0,0.00016328,2]
[394327660,1763456530819,-195.78791334,0.00016556,2]
[394327661,1763456530852,-300.0,0.00016606,2]
[394327662,1763456548344,672.21,0.00015867,2]
[394327663,1763456706840,150.0,0.00015288,2]
[394327664,1763456708038,150.0,0.00015288,2]
[394327665,1763456709642,150.0,0.00015288,2]
[394327666,1763456716160,150.0,0.00015288,2]
[394327667,1763456716547,150.0,0.00015288,2]
[394327668,1763456716799,150.0,0.00015288,2]
[394327669,1763456719789,150.0,0.00015288,2]
[394327670,1763456726201,150.0,0.00015288,2]
[394327671,1763456726674,150.0,0.00015288,2]
[394327672,1763456729661,150.0,0.00015288,2]
[394327673,1763456730712,150.0,0.00015288,2]
[394327674,1763456810935,-150.0,0.00015712,2]
[394327675,1763456810957,-150.0,0.00015712,2]
[394327676,1763456810978,-13842.09183375,0.00015831,2]
[394327677,1763456814866,-3443.50816625,0.00015831,2]
[394327678,1763456814890,-2751.0,0.0001585,2]
[394327679,1763456814913,-582.72433826,0.00015874,2]
[394327680,1763456817048,-4069.49624821,0.00015874,2]
[394327681,1763456818692,-300.0,0.00015874,2]
[394327682,1763456822088,-195.78791334,0.0001575,2]
[394327683,1763456822117,-229.50941353,0.00015874,2]
[394327684,1763456822874,-215.30046491,0.00016136,2]
[394327685,1763456824492,-84.69953509,0.00016136,2]
[394327686,1763456824520,-179.28502612,0.00016136,2]
[394327687,1763456827666,-120.71497388,0.00016136,2]
[394327688,1763456827688,-150.0,0.00016137,2]
[394327689,1763456827710,-29.28502612,0.00016137,2]
[394327690,1763456829848,-120.71497388,0.00016137,2]
[394327691,1763456829871,-48.6647933,0.00016137,2]
[394327692,1763456831740,-101.3352067,0.00016137,2]
[394327693,1763456831762,-111.41994342,0.00016137,2]
[394327698,1763456896356,168.86,0.00012583,2]
[394327699,1763456896555,168.86,0.00014156,2]
[394327700,1763456896754,168.86,0.00015729,2]
[394327701,1763456948581,150.0,0.00015836,2]
[394327702,1763457000964,999.0,0.00015834,3]
[394327707,1763457032246,-38.58005658,0.00016137,2]
[394327708,1763457032256,-150.0,0.00016137,2]
[394327710,1763457032265,-195.0,0.00016174,2]
[394327712,1763457032274,-1798.24944956,0.00016212,2]
[394327714,1763457032283,-195.0,0.00016287,2]
[394327715,1763457032292,-300.0,0.00016437,2]
[394327716,1763457032301,-300.0,0.00016437,2]
[394327717,1763457032310,-1200.0,0.00016437,2]
[394327718,1763457032320,-6110.64,0.00016438,2]
[394327719,1763457032329,-886.0,0.00016561,2]
[394327720,1763457032338,-150.0,0.00016562,2]
[394327721,1763457032347,-150.0,0.00016562,2]
[394327722,1763457032356,-908.29273204,0.00016604,2]
[394327723,1763457032365,-908.29273204,0.00016604,2]
[394327724,1763457032374,-151.0,0.00016606,2]
[394327725,1763457032383,-184.70485461,0.0001665,2]
[394327726,1763457032392,-500.0,0.00016657,2]
[394327727,1763457032402,-535.90375237,0.00016657,2]
[394327728,1763457032414,-506.97500746,0.00016657,2]
[394327729,1763457032423,-197716.52529512,0.00016711,2]
[394327730,1763457032434,-36690.43271908,0.00016711,2]
[394327731,1763457032446,-42218.79912555,0.00016711,2]
[394327732,1763457032483,-5052.4626804,0.00016711,2]
[394327734,1763457032493,-4423.2,0.00016711,2]
[394327736,1763457032505,-16534.63612988,0.00016711,2]
[394327737,1763457032517,-1947.36,0.00016711,2]
[394327766,1763457038304,-500.0,0.0001671,2]
[394327767,1763457038315,-500.0,0.0001671,2]
[394327768,1763457038324,-379.26594541,0.0001671,2]
[394327769,1763457038333,-186.44987428,0.0001671,2]
[394327770,1763457038343,-211.1064095,0.0001671,2]
[394327771,1763457038352,-500.0,0.0001671,2]
[394327772,1763457038362,-500.0,0.0001671,2]
[394327773,1763457038371,-335.21943624,0.0001671,2]
[394327774,1763457038382,-221.98513245,0.0001671,2]
[394327775,1763457038392,-500.0,0.0001671,2]
[394327776,1763457038401,-36.44104699,0.0001671,2]
[394327777,1763457038436,-463.55895301,0.0001671,2]
[394327778,1763457038445,-318.64087307,0.0001671,2]
[394327779,1763457038455,-500.0,0.0001671,2]
[394327780,1763457038464,-545.36957073,0.0001671,2]
[394327781,1763457038473,-500.0,0.0001671,2]
[394327783,1763457038482,-545.36957073,0.0001671,2]
[394327785,1763457038491,-159.36334129,0.0001671,2]
[394327787,1763457038503,-479.11745982,0.0001671,2]
[394327789,1763457038512,-359.53428596,0.0001671,2]
[394327791,1763457038522,-500.0,0.0001671,2]
[394327793,1763457038531,-350.92559637,0.0001671,2]
[394327795,1763457038543,-149.07440363,0.0001671,2]
[394327797,1763457038552,-545.36957073,0.0001671,2]
[394327798,1763457038561,-301.48896148,0.0001671,2]
[394327800,1763457038570,-545.36957073,0.0001671,2]
[394327802,1763457038580,-500.0,0.0001671,2]
[394327804,1763457038589,-545.36957073,0.0001671,2]
[394327806,1763457038598,-500.0,0.0001671,2]
[394327808,1763457038608,-545.36957073,0.0001671,2]
[394327809,1763457038617,-500.0,0.0001671,2]
[394327811,1763457038627,-545.36957073,0.0001671,2]
[394327813,1763457038636,-500.0,0.0001671,2]
[394327816,1763457038655,-545.36957073,0.0001671,2]
[394327818,1763457038666,-500.0,0.0001671,2]
[394327820,1763457038675,-545.36957073,0.0001671,2]
[394327822,1763457038685,-500.0,0.0001671,2]
[394327824,1763457038694,-545.36957073,0.0001671,2]
[394327826,1763457038704,-545.36957073,0.0001671,2]
[394327828,1763457038713,-541.22939916,0.0001671,2]
[394327830,1763457038722,-545.36957073,0.0001671,2]
[394327831,1763457038732,-496.76495453,0.0001671,2]
[394327900,1763457040273,-48.6046162,0.0001671,2]
[394327901,1763457040283,-545.36957073,0.0001671,2]
[394327902,1763457040292,-545.36957073,0.0001671,2]
[394327903,1763457040302,-545.36957073,0.0001671,2]
[394327904,1763457040311,-545.36957073,0.0001671,2]
[394327905,1763457040320,-545.36957073,0.0001671,2]
[394327906,1763457040330,-545.36957073,0.0001671,2]
[394327907,1763457040339,-545.36957073,0.0001671,2]
[394327908,1763457040348,-545.36957073,0.0001671,2]
[394327909,1763457040357,-545.36957073,0.0001671,2]
[394327910,1763457040367,-545.36957073,0.0001671,2]
[394327911,1763457040376,-545.36957073,0.0001671,2]
[394327912,1763457040385,-545.36957073,0.0001671,2]
[394327913,1763457040394,-545.36957073,0.0001671,2]
[394327914,1763457040403,-545.36957073,0.0001671,2]
[394327915,1763457040413,-545.36957073,0.0001671,2]
[394327916,1763457040422,-545.36957073,0.0001671,2]
[394327917,1763457040431,-545.36957073,0.0001671,2]
[394327918,1763457040440,-545.36957073,0.0001671,2]
[394327919,1763457040449,-545.36957073,0.0001671,2]
[394327920,1763457040458,-545.36957073,0.0001671,2]
[394327921,1763457040467,-545.36957073,0.0001671,2]
[394327922,1763457040476,-545.36957073,0.0001671,2]
[394327923,1763457040485,-545.36957073,0.0001671,2]
[394327924,1763457040494,-545.36957073,0.0001671,2]
[394327925,1763457040504,-545.36957073,0.0001671,2]
[394327926,1763457040513,-545.36957073,0.0001671,2]
[394327927,1763457040522,-545.36957073,0.0001671,2]
[394327928,1763457040532,-545.36957073,0.0001671,2]
[394327929,1763457040541,-545.36957073,0.0001671,2]
[394327930,1763457040550,-545.36957073,0.0001671,2]
[394327931,1763457040559,-545.36957073,0.0001671,2]
[394327932,1763457040568,-545.36957073,0.0001671,2]
[394327933,1763457040578,-545.36957073,0.0001671,2]
[394327934,1763457040587,-545.36957073,0.0001671,2]
[394327935,1763457040597,-545.36957073,0.0001671,2]
[394327936,1763457040606,-545.36957073,0.0001671,2]
[394327937,1763457040616,-545.36957073,0.0001671,2]
[394327938,1763457040625,-545.36957073,0.0001671,2]
[394327939,1763457040635,-545.36957073,0.0001671,2]
[394327940,1763457040644,-455416.58404997,0.00016711,2]
[394327941,1763457040653,-222.2989347,0.0001675,2]
[394327942,1763457040662,-280.3589,0.00016768,2]
[394327943,1763457040671,-5888.0,0.00016783,2]
[394327944,1763457040680,-151.0,0.0001679,2]
[394327945,1763457040690,-170.37732466,0.0001679,2]
[394327946,1763457040699,-1622.0106576,0.00016797,2]
[394327947,1763457040708,-550.0,0.00016799,2]
[394327948,1763457040717,-5280.415,0.000168,2]
[394327949,1763457040726,-1000.0,0.000168,2]
[394327950,1763457040736,-7556.01139373,0.000168,2]
[394327951,1763457040745,-2500.0,0.000168,2]
[394327952,1763457040754,-1002.40334607,0.00016807,2]
[394327953,1763457040763,-1622.01065753,0.00016808,2]
[394327954,1763457040773,-1000.0,0.0001681,2]
[394327955,1763457040782,-7556.01139365,0.00016811,2]
[394327956,1763457040792,-4959.02415951,0.00016818,2]
[394327957,1763457040801,-1622.01065753,0.0001682,2]
[394327958,1763457040811,-7556.01139365,0.00016822,2]
[394327959,1763457040820,-1298.18258,0.0001683,2]
[394327960,1763457040829,-1622.01065753,0.00016831,2]
[394327961,1763457040841,-7556.01139365,0.00016833,2]
[394327962,1763457040851,-1622.01065753,0.00016843,2]
[394327963,1763457040860,-7556.01139365,0.00016844,2]
[394327964,1763457040869,-300.14091351,0.0001685,2]
[394327965,1763457040878,-1622.01065753,0.00016854,2]
[394327966,1763457040889,-7556.01139365,0.00016856,2]
[394327967,1763457040899,-200.0,0.00016857,2]
[394327968,1763457040909,-1622.01065753,0.00016866,2]
[394327970,1763457040920,-7556.01139365,0.00016867,2]
[394327971,1763457040929,-5888.0,0.00016868,2]
[394327972,1763457040939,-339.53381853,0.00016873,2]
[394327973,1763457040949,-500.18779739,0.00016873,2]
[394327974,1763457040959,-171.85676861,0.00016873,2]
[394327975,1763457040968,-166.37685578,0.00016873,2]
[394327976,1763457040977,-500.0,0.00016873,2]
[394327977,1763457040987,-228.14650797,0.00016873,2]
[394327978,1763457040996,-500.0,0.00016873,2]
[394327979,1763457041005,-500.0,0.00016873,2]
[394327980,1763457041015,-284.49479379,0.00016873,2]
[394327981,1763457041024,-500.0,0.00016873,2]
[394327982,1763457041034,-503.34067771,0.00016873,2]
[394327983,1763457041043,-500.0,0.00016873,2]
[394327984,1763457041052,-500.0,0.00016873,2]
[394327985,1763457041062,-500.0,0.00016873,2]
[394327986,1763457041071,-162.02315728,0.00016873,2]
[394327987,1763457041080,-498.59718969,0.00016873,2]
[394327988,1763457041090,-502.43033754,0.00016873,2]
[394327989,1763457041099,-500.0,0.00016873,2]
[394327990,1763457041108,-500.0,0.00016873,2]
[394327991,1763457041117,-500.0,0.00016873,2]
[394327992,1763457041126,-500.0,0.00016873,2]
[394327993,1763457041137,-533.15594426,0.00016873,2]
[394327994,1763457041147,-500.0,0.00016873,2]
[394327995,1763457041157,-217.8176856,0.00016873,2]
[394327996,1763457041166,-500.0,0.00016873,2]
[394327997,1763457041176,-500.0,0.00016873,2]
[394327998,1763457041185,-500.0,0.00016873,2]
[394327999,1763457041195,-500.0,0.00016873,2]
[394328000,1763457041204,-500.0,0.00016873,2]
[394328001,1763457041214,-165.69252863,0.00016873,2]
[394328002,1763457041224,-1304.79,0.00016873,2]
[394328003,1763457041234,-1622.01065753,0.00016877,2]
[394328004,1763457041243,-7556.01139365,0.00016878,2]
[394328005,1763457041252,-275.0,0.00016886,2]
[394328006,1763457041262,-1622.01065753,0.00016889,2]
[394328007,1763457041272,-7556.01139365,0.00016889,2]
[394328008,1763457041281,-5888.0,0.00016894,2]
[394328009,1763457041290,-151.0,0.00016897,2]
[394328010,1763457041300,-500.0,0.00016899,2]
[394328011,1763457041309,-500.0,0.00016899,2]
[394328012,1763457041318,-500.0,0.00016899,2]
[394328013,1763457041327,-500.0,0.00016899,2]
[394328014,1763457041336,-329.08232777,0.00016899,2]
[394328015,1763457041346,-500.0,0.00016899,2]
[394328016,1763457041355,-500.0,0.00016899,2]
[394328017,1763457041365,-518.587662,0.00016899,2]
[394328018,1763457041375,-577.50398757,0.00016899,2]
[394328019,1763457041385,-157.68004741,0.00016899,2]
[394328020,1763457041394,-285.27774158,0.00016899,2]
[394328021,1763457041404,-510.25527032,0.00016899,2]
[394328022,1763457041414,-500.0,0.00016899,2]
[394328023,1763457041424,-500.0,0.00016899,2]
[394328024,1763457041435,-200.0,0.00016899,2]
[394328025,1763457041445,-150.0,0.00016899,2]
[394328026,1763457041455,-500.0,0.00016899,2]
[394328027,1763457041466,-500.0,0.00016899,2]
[394328028,1763457041476,-500.0,0.00016899,2]
[394328029,1763457041485,-500.0,0.00016899,2]
[394328030,1763457041495,-150.0,0.00016899,2]
[394328031,1763457041505,-1000.0,0.000169,2]
[394328032,1763457041514,-7390.7752,0.000169,2]
[394328033,1763457041523,-438.49567536,0.000169,2]
[394328034,1763457041533,-1622.01065753,0.000169,2]
[394328035,1763457041545,-7556.01139365,0.000169,2]
[394328036,1763457041554,-300.14091351,0.000169,2]
[394328037,1763457041564,-207.11990031,0.000169,2]
[394328038,1763457041574,-211.94675198,0.000169,2]
[394328039,1763457041585,-196.67398589,0.000169,2]
[394328040,1763457041595,-1298.18259,0.0001695,2]
[394328041,1763457041605,-21441.28123095,0.0001697,2]
[394328042,1763457041614,-500.83453112,0.00016973,2]
[394328043,1763457041624,-500.42544501,0.00016973,2]
[394328044,1763457041636,-500.0,0.00016973,2]
[394328045,1763457041647,-500.0,0.00016973,2]
[394328046,1763457041657,-500.0,0.00016973,2]
[394328047,1763457041668,-500.0,0.00016973,2]
[394328048,1763457041678,-500.95085178,0.00016973,2]
[394328049,1763457041689,-500.0,0.00016973,2]
[394328050,1763457041699,-162.77377707,0.00016973,2]
[394328051,1763457041709,-500.0,0.00016973,2]
[394328052,1763457041718,-500.0,0.00016973,2]
[394328053,1763457041727,-501.13351996,0.00016973,2]
[394328054,1763457041737,-500.0,0.00016973,2]
[394328055,1763457041747,-500.89803741,0.00016973,2]
[394328056,1763457041756,-503.09193307,0.00016973,2]
[394328057,1763457041766,-500.0,0.00016973,2]
[394328058,1763457041950,-182.03354948,0.00016973,2]
[394328059,1763457041960,-242.13559859,0.00016973,2]
[394328060,1763457041970,-500.0,0.00016973,2]
[394328061,1763457041979,-501.84520062,0.00016973,2]
[394328062,1763457041988,-500.0,0.00016973,2]
[394328063,1763457041998,-501.58323235,0.00016973,2]
[394328064,1763457042007,-500.0,0.00016973,2]
[394328065,1763457042016,-151.55760779,0.00016983,2]
[394328066,1763457042026,-150.00000001,0.00016986,2]
[394328067,1763457042035,-150.0,0.00016986,2]
[394328068,1763457042045,-150.0,0.00016986,2]
[394328069,1763457042055,-150.0,0.00016986,2]
[394328070,1763457042064,-150.0,0.00016986,2]
[394328071,1763457042074,-150.0,0.00016986,2]
[394328072,1763457042083,-150.0,0.00016986,2]
[394328073,1763457042092,-175.82770283,0.0001699,2]
[394328074,1763457042102,-300.0,0.00016999,2]
[394328075,1763457042111,-300.0,0.00016999,2]
[394328076,1763457042121,-4232.0,0.00017,2]
[394328077,1763457042131,-3263167.78919024,0.00017,2]
[394328078,1763457042141,-15286.35603598,0.00017,2]
[394328079,1763457042151,-105331.21597151,0.00017,2]
[394328080,1763457042161,-712430.48631145,0.00017,2]
[394328081,1763457042171,-2000.0,0.00017,2]
[394328082,1763457042181,-151.0,0.00017,2]
[394328083,1763457042191,-154.920029,0.00017,2]
[394328084,1763457042200,-152.418954,0.00017,2]
[394328085,1763457042211,-151.0,0.00017,2]
[394328086,1763457042220,-279.335986,0.00017,2]
[394328087,1763457042232,-250.0,0.00017,2]
[394328088,1763457042241,-151.0,0.00017,2]
[394328089,1763457042250,-166.334501,0.00017,2]
[394328090,1763457042260,-151.0,0.00017,2]
[394328091,1763457042269,-151.0,0.00017,2]
[394328092,1763457042280,-151.0,0.00017,2]
[394328093,1763457042289,-151.0,0.00017,2]
[394328094,1763457042300,-1076.0,0.00017,2]
[394328095,1763457042310,-151.0,0.00017,2]
[394328096,1763457042319,-151.0,0.00017,2]
[394328097,1763457042328,-151.0,0.00017,2]
[394328098,1763457042337,-151.0,0.00017,2]
[394328099,1763457042347,-151.0,0.00017,2]
[394328100,1763457042356,-542.638418,0.00017,2]
[394328101,1763457042365,-542.638418,0.00017,2]
[394328102,1763457042375,-542.638418,0.00017,2]
[394328103,1763457042384,-542.638418,0.00017,2]
[394328104,1763457042394,-166.66,0.00017017,2]
[394328105,1763457042403,-500.0,0.00017036,2]
[394328106,1763457042412,-500.0,0.00017036,2]
[394328107,1763457042422,-150.0,0.00017036,2]
[394328108,1763457042432,-5888.0,0.00017062,2]
[394328109,1763457042444,-1304.79,0.00017147,2]
[394328110,1763457042455,-3413.0,0.00017163,2]
[394328111,1763457042464,-517.6100241,0.00017173,2]
[394328112,1763457042475,-500.0,0.00017173,2]
[394328113,1763457042484,-150.0,0.00017173,2]
[394328114,1763457042494,-151.0,0.00017206,2]
[394328115,1763457042503,-151.0,0.00017206,2]
[394328116,1763457042512,-151.0,0.00017207,2]
[394328117,1763457042521,-151.0,0.00017209,2]
[394328118,1763457042541,-1298.18258,0.0001721,2]
[394328119,1763457042550,-300.0,0.00017279,2]
[394328120,1763457042560,-195.0,0.00017284,2]
[394328121,1763457042570,-300.0,0.00017284,2]
[394328122,1763457042579,-168.86,0.00017302,2]
[394328123,1763457042588,-500.0,0.0001731,2]
[394328124,1763457042598,-242.72794992,0.0001731,2]
[394328125,1763457042607,-866.22355703,0.00017421,2]
[394328126,1763457042617,-1025.24733641,0.00017421,2]
[394328127,1763457042626,-1000.0,0.00017421,2]
[394328128,1763457042635,-363.04348691,0.00017421,2]
[394328129,1763457042644,-909.97796895,0.00017421,2]
[394328130,1763457042654,-1000.0,0.00017421,2]
[394328131,1763457042663,-1000.0,0.00017421,2]
[394328132,1763457042672,-767.77677365,0.00017421,2]
[394328133,1763457042681,-1000.0,0.00017421,2]
[394328134,1763457042691,-162.26120366,0.00017421,2]
[394328135,1763457042700,-1000.0,0.00017421,2]
[394328136,1763457042709,-1000.0,0.00017421,2]
[394328137,1763457042718,-503.20529526,0.00017421,2]
[394328138,1763457042727,-1000.0,0.00017421,2]
[394328139,1763457042737,-1304.79,0.00017421,2]
[394328140,1763457042747,-300.0,0.00017436,2]
[394328141,1763457042757,-300.0,0.00017436,2]
[394328142,1763457042767,-500.0,0.00017447,2]
[394328143,1763457042777,-1298.18259,0.0001745,2]
[394328144,1763457042786,-283.63,0.00017498,2]
[394328145,1763457042796,-226.74427698,0.00017521,2]
[394328146,1763457042806,-502.10718948,0.00017521,2]
[394328147,1763457042815,-228.77234087,0.00017521,2]
[394328148,1763457042824,-500.0,0.00017521,2]
[394328149,1763457042833,-1000.0,0.00017521,2]
[394328150,1763457042846,-503.55891604,0.00017521,2]
[394328151,1763457042855,-526.79019395,0.00017521,2]
[394328152,1763457042865,-1000.0,0.00017521,2]
[394328153,1763457042874,-297.28368691,0.00017521,2]
[394328154,1763457042885,-507.23583524,0.00017521,2]
[394328155,1763457042894,-151.52945777,0.00017521,2]
[394328156,1763457042904,-500.0,0.00017584,2]
[394328157,1763457042915,-1304.79,0.00017695,2]
[394328158,1763457042925,-1600.0,0.00017695,2]
[394328159,1763457042935,-1298.18259,0.000177,2]
[394328160,1763457042944,-166.66,0.00017719,2]
[394328161,1763457042954,-500.0,0.00017721,2]
[394328162,1763457042964,-1000.0,0.00017732,2]
[394328163,1763457042974,-250.0,0.0001775,2]
[394328164,1763457042983,-195.0,0.00017751,2]
[394328165,1763457042993,-300.0,0.00017751,2]
[394328166,1763457043002,-300.0,0.00017751,2]
[394328167,1763457043012,-1823.41517303,0.00017751,4]
[394328168,1763457043021,-2500.0,0.00017751,2]
[394328169,1763457043034,-195.0,0.00017751,2]
[394328170,1763457043043,-300.0,0.00017751,2]
[394328171,1763457043053,-250.0,0.00017751,2]
[394328172,1763457043062,-2500.0,0.00017751,2]
[394328173,1763457043072,-250.0,0.00017751,2]
[394328174,1763457043081,-300.0,0.00017751,2]
[394328175,1763457043090,-500.0,0.00017808,2]
[394328176,1763457043100,-500.0,0.00017858,2]